fUST/lending_fUST_20241110
["ID","MTS","AMOUNT","RATE_DAILY","PERIOD"]
[341794982,1731234632694,-153.0,0.00029726,30]
[341794983,1731234632703,-153.0,0.00029726,30]
[341794984,1731234632712,-153.0,0.00029726,30]
[341794985,1731234632722,-153.0,0.00029726,30]
[341794986,1731234632732,-153.0,0.00029726,30]
[341794987,1731234632741,-153.0,0.00029726,30]
[341794988,1731234632750,-153.0,0.00029726,30]
[341794989,1731234632759,-153.0,0.00029726,30]
[341794990,1731234632768,-153.0,0.00029726,30]
[341794991,1731234632778,-153.0,0.00029726,30]
[341794992,1731234632787,-153.0,0.00029726,30]
[341794993,1731234632796,-153.0,0.00029726,30]
[341794994,1731234632805,-153.0,0.00029726,30]
[341794995,1731234632815,-153.0,0.00029726,30]
[341794996,1731234632824,-153.0,0.00029726,30]
[341794997,1731234632833,-153.0,0.00029726,30]
[341794998,1731234632842,-3440.79215951,0.00029734,30]
[341794999,1731234632851,-167.585413,0.0002976,2]
[341795000,1731234632860,-644.43259706,0.00029789,2]
[341795001,1731234632870,-5426.55706977,0.00029879,2]
[341795002,1731234632879,-1000.0,0.00029936,2]
[341795003,1731234632889,-28804.97339131,0.00029936,3]
[341795005,1731234638239,-427.66714764,0.0002689,2]
[341795006,1731234638249,-500.0,0.00029499,2]
[341795007,1731234638258,-500.0,0.00029499,2]
[341795008,1731234638268,-379.86850077,0.00029499,2]
[341795009,1731234638277,-500.0,0.00029499,2]
[341795010,1731234638286,-500.0,0.00029499,2]
[341795011,1731234638295,-500.0,0.00029499,2]
[341795012,1731234638304,-500.0,0.00029499,2]
[341795013,1731234638314,-500.0,0.00029499,2]
[341795014,1731234638323,-500.0,0.00029499,2]
[341795015,1731234638332,-476.28937096,0.00029499,2]
[341795016,1731234638341,-500.0,0.00029499,2]
[341795018,1731234638351,-500.0,0.00029499,2]
[341795020,1731234638361,-500.0,0.00029499,2]
[341795021,1731234638370,-291.74938785,0.00029499,2]
[341795022,1731234638382,-208.25061215,0.00029499,2]
[341795023,1731234638392,-500.0,0.00029499,2]
[341795024,1731234638401,-500.0,0.00029499,2]
[341795025,1731234638410,-336.79511999,0.00029499,2]
[341795026,1731234638424,-163.20488001,0.00029499,2]
[341795028,1731234638433,-500.0,0.00029499,2]
[341795030,1731234638442,-500.0,0.00029499,2]
[341795031,1731234638451,-500.0,0.00029499,2]
[341795032,1731234638461,-500.0,0.00029499,2]
[341795033,1731234638470,-500.0,0.00029499,2]
[341795034,1731234638479,-379.66758359,0.00029499,2]
[341795035,1731234638489,-500.0,0.00029499,2]
[341795036,1731234638499,-500.0,0.00029499,2]
[341795037,1731234638507,-500.0,0.00029499,2]
[341795038,1731234638517,-158.35486355,0.00029499,2]
[341795040,1731234638526,-500.0,0.00029499,2]
[341795042,1731234638535,-500.0,0.00029499,2]
[341795044,1731234638544,-500.0,0.00029499,2]
[341795045,1731234638553,-513.24148361,0.00029499,2]
[341795046,1731234638562,-500.0,0.00029499,2]
[341795047,1731234638572,-500.0,0.00029499,2]
[341795048,1731234638581,-500.0,0.00029499,2]
[341795049,1731234638591,-500.13715306,0.00029499,2]
[341795050,1731234638601,-500.0,0.00029499,2]
[341795051,1731234638611,-500.0,0.00029499,2]
[341795052,1731234638621,-500.0,0.00029499,2]
[341795053,1731234638630,-500.0,0.00029499,2]
[341795054,1731234638640,-500.0,0.00029499,2]
[341795055,1731234638650,-535.71482054,0.00029499,2]
[341795056,1731234638660,-500.0,0.00029499,2]
[341795057,1731234638733,-155.7458321,0.00029499,2]
[341795058,1731234638744,-500.0,0.00029499,2]
[341795059,1731234638755,-500.0,0.00029499,2]
[341795060,1731234638764,-500.0,0.00029499,2]
[341795061,1731234638773,-500.0,0.00029499,2]
[341795062,1731234638783,-500.0,0.00029499,2]
[341795063,1731234638793,-500.0,0.00029499,2]
[341795064,1731234638803,-500.0,0.00029499,2]
[341795065,1731234638813,-168.22245974,0.00029499,2]
[341795066,1731234638823,-500.0,0.00029499,2]
[341795067,1731234638833,-500.0,0.00029499,2]
[341795068,1731234638843,-500.0,0.00029499,2]
[341795069,1731234638851,-500.0,0.00029499,2]
[341795070,1731234638861,-500.0,0.00029499,2]
[341795071,1731234638870,-500.0,0.00029499,2]
[341795072,1731234638879,-500.0,0.00029499,2]
[341795073,1731234638889,-500.0,0.00029499,2]
[341795074,1731234638899,-500.0,0.00029499,2]
[341795075,1731234638908,-500.0,0.00029499,2]
[341795076,1731234638917,-500.0,0.00029499,2]
[341795077,1731234638926,-500.0,0.00029499,2]
[341795078,1731234638935,-500.0,0.00029499,2]
[341795079,1731234638945,-500.0,0.00029499,2]
[341795080,1731234638954,-500.0,0.00029499,2]
[341795081,1731234638963,-500.0,0.00029499,2]
[341795082,1731234638973,-500.0,0.00029499,2]
[341795083,1731234638982,-500.0,0.00029499,2]
[341795085,1731234638991,-500.0,0.00029499,2]
[341795086,1731234639001,-500.0,0.00029499,2]
[341795087,1731234639010,-500.0,0.00029499,2]
[341795088,1731234639019,-500.0,0.00029499,2]
[341795089,1731234639028,-500.0,0.00029499,2]
[341795090,1731234639038,-500.0,0.00029499,2]
[341795091,1731234639047,-500.0,0.00029499,2]
[341795092,1731234639056,-500.0,0.00029499,2]
[341795093,1731234639065,-500.0,0.00029499,2]
[341795094,1731234639075,-500.0,0.00029499,2]
[341795095,1731234639085,-500.0,0.00029499,2]
[341795096,1731234639095,-500.0,0.00029499,2]
[341795097,1731234639104,-500.0,0.00029499,2]
[341795098,1731234639113,-500.0,0.00029499,2]
[341795099,1731234639122,-500.0,0.00029499,2]
[341795100,1731234639133,-9255.65950222,0.00029936,3]
[341795102,1731234639149,-1931.17760319,0.00029936,2]
[341795105,1731234639168,-1931.17760316,0.00029961,2]
[341795106,1731234639186,-1931.17760316,0.00029986,2]
[341795107,1731234639205,-18131.94,0.0002999,10]
[341795108,1731234639225,-510.9767832,0.0003,30]
[341795109,1731234639242,-402.7434423,0.0003,30]
[341795110,1731234639260,-326.7466159,0.0003,30]
[341795111,1731234639274,-8047.81591135,0.0003,2]
[341795112,1731234639292,-6996.60381588,0.0003,30]
[341795114,1731234639311,-881.20420184,0.0003,15]
[341795115,1731234639328,-953.38981487,0.0003,120]
[341795117,1731234639341,-2473.14577937,0.0003,2]
[341795118,1731234639360,-24913.98016146,0.0003,60]
[341795119,1731234639373,-24341.93314279,0.0003,10]
[341795120,1731234639388,-2045.54332247,0.0003,30]
[341795121,1731234639402,-281.28223099,0.0003,2]
[341795122,1731234639418,-1931.17760316,0.00030011,2]
[341795123,1731234639432,-187.72,0.00030025,2]
[341795124,1731234639446,-500.0,0.00030035,7]
[341795125,1731234639459,-624.38,0.00030035,2]
[341795126,1731234639472,-526.14857579,0.00030036,2]
[341795128,1731234639486,-343.11406107,0.00030036,2]
[341795130,1731234639500,-191217.39580806,0.00030036,2]
[341795131,1731234639514,-163.73,0.00030036,7]
[341795132,1731234639528,-159.83578735,0.00030036,7]
[341795133,1731234639542,-159.83578735,0.00030036,7]
[341795134,1731234639556,-159.83578735,0.00030036,7]
[341795135,1731234639570,-159.83578735,0.00030036,7]
[341795136,1731234639584,-159.83578735,0.00030036,7]
[341795137,1731234639597,-159.83578735,0.00030036,7]
[341795138,1731234639611,-159.83578735,0.00030036,7]
[341795139,1731234639625,-159.83578735,0.00030036,7]
[341795140,1731234639639,-159.83,0.00030036,7]
[341795141,1731234639653,-154.12736637,0.00030036,7]
[341795142,1731234639669,-154.12736637,0.00030036,7]
[341795143,1731234639683,-154.12736637,0.00030036,7]
[341795144,1731234639698,-154.12736637,0.00030036,7]
[341795145,1731234639711,-154.12736637,0.00030036,7]
[341795146,1731234639725,-154.12736637,0.00030036,7]
[341795147,1731234639740,-154.12736637,0.00030036,7]
[341795148,1731234639755,-154.12736637,0.00030036,7]
[341795149,1731234639769,-154.12736637,0.00030036,7]
[341795150,1731234639782,-154.12736637,0.00030036,7]
[341795151,1731234639794,-154.12736637,0.00030036,7]
[341795152,1731234639902,-154.12736637,0.00030036,7]
[341795153,1731234639920,-154.12736637,0.00030036,7]
[341795154,1731234639931,-811.09750485,0.00030036,2]
[341795155,1731234639941,-1931.17760316,0.00030036,2]
[341795156,1731234639950,-500.0,0.00030073,5]
[341795157,1731234639959,-500.0,0.00030073,5]
[341795158,1731234639968,-500.0,0.00030073,5]
[341795159,1731234639977,-505.62246059,0.00030073,5]
[341795160,1731234639986,-502.41547178,0.00030073,5]
[341795161,1731234639996,-500.0,0.00030073,5]
[341795162,1731234640005,-500.0,0.00030073,5]
[341795163,1731234640016,-507.47644622,0.00030073,5]
[341795164,1731234640026,-500.0,0.00030073,2]
[341795165,1731234640035,-321.25939195,0.00030073,5]
[341795166,1731234640044,-500.0,0.00030073,5]
[341795167,1731234640054,-500.61827013,0.00030073,5]
[341795168,1731234640063,-497.13631756,0.00030073,5]
[341795169,1731234640073,-500.0,0.00030073,5]
[341795170,1731234640082,-500.0,0.00030073,5]
[341795171,1731234640091,-503.47188376,0.00030073,5]
[341795172,1731234640100,-437.72467704,0.00030073,5]
[341795173,1731234640110,-504.50831152,0.00030073,5]
[341795174,1731234640119,-500.0,0.00030073,2]
[341795175,1731234640130,-150.112233,0.000301,18]
[341795176,1731234640139,-150.112233,0.000301,20]
[341795177,1731234640148,-150.112234,0.000301,19]
[341795178,1731234640157,-160.0,0.00030135,10]
[341795179,1731234640168,-370.03382532,0.00030135,2]
[341795180,1731234640177,-250.39539215,0.00030135,2]
[341795181,1731234640187,-341.87738057,0.00030135,2]
[341795182,1731234640196,-586.32220751,0.00030135,2]
[341795183,1731234640205,-530.7902259,0.00030135,2]
[341795184,1731234640214,-500.0,0.00030135,2]
[341795186,1731234640223,-500.0,0.00030135,2]
[341795187,1731234640233,-500.0,0.00030135,2]
[341795188,1731234640242,-500.0,0.00030135,2]
[341795189,1731234640251,-485.02405544,0.00030135,2]
[341795190,1731234640260,-500.0,0.00030135,2]
[341795191,1731234640269,-285.03092979,0.00030135,2]
[341795192,1731234640279,-500.0,0.00030135,2]
[341795193,1731234640288,-500.0,0.00030135,2]
[341795194,1731234640297,-500.0,0.00030135,2]
[341795195,1731234640306,-500.0,0.00030135,2]
[341795196,1731234640315,-500.0,0.00030135,2]
[341795197,1731234640324,-500.0,0.00030135,2]
[341795198,1731234640333,-500.0,0.00030135,2]
[341795199,1731234640342,-238.82880348,0.00030135,2]
[341795200,1731234640351,-500.0,0.00030135,2]
[341795201,1731234640361,-500.0,0.00030136,15]
[341795202,1731234640370,-500.0,0.00030136,2]
[341795203,1731234640379,-260.53801076,0.00030136,2]
[341795204,1731234640389,-500.0,0.00030136,2]
[341795205,1731234640398,-366.22939308,0.00030136,2]
[341795206,1731234640407,-513.54100423,0.00030136,2]
[341795207,1731234640417,-500.0,0.00030136,2]
[341795208,1731234640426,-500.0,0.00030136,2]
[341795209,1731234640436,-508.84704452,0.00030136,2]
[341795210,1731234640445,-503.99723924,0.00030136,2]
[341795211,1731234640454,-500.0,0.00030136,2]
[341795212,1731234640463,-500.0,0.00030136,2]
[341795213,1731234640472,-508.78879154,0.00030136,2]
[341795214,1731234640481,-511.45859781,0.00030136,2]
[341795215,1731234640491,-500.0,0.00030136,2]
[341795216,1731234640500,-500.0,0.00030136,2]
[341795217,1731234640509,-500.0,0.00030136,2]
[341795218,1731234640518,-500.0,0.00030136,2]
[341795219,1731234640527,-500.0,0.00030136,2]
[341795220,1731234640536,-536.97697647,0.00030136,2]
[341795221,1731234640545,-500.0,0.00030136,2]
[341795222,1731234640555,-500.0,0.00030136,2]
[341795223,1731234640564,-425.58043205,0.00030136,2]
[341795224,1731234640573,-500.0,0.00030136,2]
[341795225,1731234640582,-506.57302516,0.00030136,2]
[341795226,1731234640591,-500.0,0.00030136,2]
[341795227,1731234640600,-507.16278177,0.00030136,2]
[341795228,1731234640610,-500.0,0.00030136,2]
[341795229,1731234640619,-500.0,0.00030136,2]
[341795230,1731234640629,-500.0,0.00030136,2]
[341795231,1731234640638,-500.0,0.00030136,2]
[341795232,1731234640648,-507.53598651,0.00030136,2]
[341795233,1731234640663,-508.2282593,0.00030136,2]
[341795234,1731234640675,-500.0,0.00030136,2]
[341795235,1731234640686,-543.77150885,0.00030136,2]
[341795236,1731234640695,-500.0,0.00030136,2]
[341795237,1731234640705,-500.0,0.00030136,2]
[341795238,1731234640716,-512.01895388,0.00030136,2]
[341795239,1731234640727,-500.0,0.00030136,2]
[341795240,1731234640737,-500.0,0.00030136,2]
[341795241,1731234640747,-500.0,0.00030136,2]
[341795242,1731234640757,-500.0,0.00030136,2]
[341795243,1731234640767,-500.0,0.00030136,2]
[341795244,1731234640777,-500.0,0.00030136,2]
[341795245,1731234640787,-500.0,0.00030136,2]
[341795246,1731234640796,-500.0,0.00030136,2]
[341795247,1731234640805,-640.34852633,0.00030136,2]
[341795248,1731234640815,-500.0,0.00030136,2]
[341795249,1731234640826,-250.99455479,0.00030136,2]
[341795250,1731234640836,-500.0,0.00030136,2]
[341795251,1731234640846,-500.0,0.00030136,2]
[341795252,1731234640855,-500.0,0.00030136,2]
[341795253,1731234640864,-500.0,0.00030136,2]
[341795254,1731234640873,-500.0,0.00030136,2]
[341795255,1731234640882,-500.0,0.00030136,2]
[341795256,1731234640891,-500.0,0.00030136,2]
[341795257,1731234640901,-500.0,0.00030136,2]
[341795258,1731234640910,-500.0,0.00030136,2]
[341795259,1731234640920,-500.0,0.00030136,2]
[341795260,1731234640929,-500.0,0.00030136,2]
[341795261,1731234640939,-501.85515526,0.00030136,2]
[341795262,1731234640948,-500.0,0.00030136,2]
[341795263,1731234640957,-500.0,0.00030136,2]
[341795264,1731234640966,-500.0,0.00030136,2]
[341795265,1731234640976,-500.0,0.00030136,2]
[341795266,1731234640985,-500.0,0.00030136,2]
[341795267,1731234640994,-500.0,0.00030136,2]
[341795268,1731234641004,-500.0,0.00030136,2]
[341795269,1731234641013,-500.0,0.00030136,2]
[341795270,1731234641022,-527.23140081,0.00030136,2]
[341795271,1731234641031,-500.0,0.00030136,2]
[341795272,1731234641041,-500.0,0.00030136,2]
[341795273,1731234641050,-250.0,0.00030136,2]
[341795274,1731234641061,-200.0,0.00030136,2]
[341795275,1731234641070,-500.0,0.00030136,2]
[341795276,1731234641079,-502.90988778,0.00030136,2]
[341795277,1731234641088,-513.24671846,0.00030136,2]
[341795278,1731234641098,-500.0,0.00030136,2]
[341795279,1731234641108,-500.0,0.00030136,2]
[341795280,1731234641117,-559.20774295,0.00030136,2]
[341795281,1731234641127,-500.0,0.00030136,2]
[341795282,1731234641137,-500.0,0.00030136,2]
[341795283,1731234641146,-500.0,0.00030136,2]
[341795284,1731234641156,-500.0,0.00030136,2]
[341795285,1731234641165,-500.0,0.00030136,2]
[341795286,1731234641174,-507.01669889,0.00030136,2]
[341795287,1731234641184,-523.88989039,0.00030136,2]
[341795288,1731234641193,-512.34345009,0.00030136,2]
[341795289,1731234641203,-500.0,0.00030136,2]
[341795290,1731234641212,-500.0,0.00030136,2]
[341795291,1731234641221,-500.0,0.00030136,2]
[341795292,1731234641231,-500.0,0.00030136,2]
[341795293,1731234641240,-500.0,0.00030136,2]
[341795294,1731234641249,-584.96079147,0.00030136,2]
[341795295,1731234641258,-500.0,0.00030136,2]
[341795296,1731234641268,-500.0,0.00030136,2]
[341795297,1731234641277,-500.0,0.00030136,2]
[341795298,1731234641286,-500.0,0.00030136,2]
[341795299,1731234641296,-500.0,0.00030136,2]
[341795300,1731234641305,-522.85349665,0.00030136,2]
[341795301,1731234641377,-500.0,0.00030136,2]
[341795302,1731234641391,-500.0,0.00030136,2]
[341795303,1731234641401,-500.0,0.00030136,2]
[341795304,1731234641411,-500.0,0.00030136,2]
[341795305,1731234641421,-500.0,0.00030136,2]
[341795306,1731234641430,-500.0,0.00030136,2]
[341795307,1731234641439,-500.0,0.00030136,2]
[341795308,1731234641448,-414.69900724,0.00030136,2]
[341795309,1731234641458,-500.0,0.00030136,2]
[341795310,1731234641467,-500.0,0.00030136,2]
[341795311,1731234641476,-500.0,0.00030136,2]
[341795312,1731234641485,-883.31,0.00030136,2]
[341795313,1731234641495,-883.31,0.00030136,2]
[341795314,1731234641505,-883.31,0.00030136,2]
[341795315,1731234641514,-883.31,0.00030136,2]
[341795316,1731234641523,-883.31,0.00030136,2]
[341795317,1731234641532,-883.31,0.00030136,2]
[341795318,1731234641541,-512.22103537,0.00030136,2]
[341795319,1731234641550,-883.31,0.00030136,2]
[341795320,1731234641559,-883.31,0.00030136,2]
[341795321,1731234641568,-883.31,0.00030136,2]
[341795322,1731234641577,-883.31,0.00030136,2]
[341795323,1731234641586,-883.31,0.00030136,2]
[341795324,1731234641595,-883.31,0.00030136,2]
[341795325,1731234641604,-883.31,0.00030136,2]
[341795326,1731234641613,-500.0,0.00030136,2]
[341795327,1731234641623,-883.31,0.00030136,2]
[341795328,1731234641633,-883.31,0.00030136,2]
[341795329,1731234641642,-883.31,0.00030136,2]
[341795330,1731234641651,-883.31,0.00030136,2]
[341795331,1731234641662,-883.31,0.00030136,2]
[341795332,1731234641673,-883.31,0.00030136,2]
[341795333,1731234641682,-883.31,0.00030136,2]
[341795334,1731234641692,-500.0,0.00030136,2]
[341795335,1731234641701,-883.31,0.00030136,2]
[341795336,1731234641712,-883.31,0.00030136,2]
[341795337,1731234641721,-500.0,0.00030136,2]
[341795338,1731234641731,-883.31,0.00030136,2]
[341795339,1731234641741,-883.33,0.00030136,2]
[341795340,1731234641750,-500.0,0.00030136,2]
[341795341,1731234641759,-500.0,0.00030136,2]
[341795342,1731234641768,-728.39,0.00030136,2]
[341795343,1731234641778,-500.0,0.00030136,2]
[341795344,1731234641787,-500.0,0.00030136,2]
[341795345,1731234641797,-599.64243554,0.00030136,2]
[341795346,1731234641807,-500.0,0.00030136,2]
[341795347,1731234641816,-500.0,0.00030136,2]
[341795348,1731234641826,-500.0,0.00030136,2]
[341795349,1731234641835,-504.1342516,0.00030136,2]
[341795350,1731234641843,-500.0,0.00030136,2]
[341795351,1731234641853,-500.0,0.00030136,2]
[341795352,1731234641862,-514.34053155,0.00030136,2]
[341795353,1731234641871,-500.0,0.00030136,2]
[341795354,1731234641884,-516.22694584,0.00030136,2]
[341795355,1731234641894,-500.0,0.00030136,2]
[341795356,1731234641903,-500.0,0.00030136,2]
[341795357,1731234641912,-500.0,0.00030136,2]
[341795358,1731234641923,-500.0,0.00030136,2]
[341795359,1731234641932,-500.0,0.00030136,2]
[341795360,1731234641941,-500.0,0.00030136,2]
[341795361,1731234641950,-500.0,0.00030136,2]
[341795362,1731234641959,-502.42156283,0.00030136,2]
[341795363,1731234641968,-500.0,0.00030136,2]
[341795364,1731234641977,-510.59476644,0.00030136,2]
[341795365,1731234641986,-513.06268591,0.00030136,2]
[341795366,1731234641996,-500.48,0.00030136,2]
[341795367,1731234642005,-151.0,0.00030136,7]
[341795368,1731234642015,-500.0,0.00030136,2]
[341795369,1731234642024,-500.0,0.00030136,2]
[341795370,1731234642033,-500.0,0.00030136,2]
[341795371,1731234642042,-500.0,0.00030136,2]
[341795372,1731234642051,-500.0,0.00030136,2]
[341795373,1731234642060,-500.0,0.00030136,2]
[341795374,1731234642068,-544.89489798,0.00030136,2]
[341795375,1731234642077,-830.38,0.00030136,2]
[341795376,1731234642086,-500.0,0.00030136,2]
[341795377,1731234642095,-500.0,0.00030136,2]
[341795378,1731234642104,-500.0,0.00030136,2]
[341795379,1731234642114,-500.0,0.00030136,2]
[341795380,1731234642124,-500.0,0.00030136,2]
[341795381,1731234642135,-500.0,0.00030136,2]
[341795382,1731234642144,-500.0,0.00030136,2]
[341795383,1731234642153,-500.0,0.00030136,2]
[341795384,1731234642163,-500.0,0.00030136,2]
[341795385,1731234642173,-528.86921381,0.00030136,2]
[341795386,1731234642182,-632.3536801,0.00030136,15]
[341795387,1731234642191,-552.39111165,0.00030136,2]
[341795388,1731234642201,-508.43100591,0.00030136,2]
[341795389,1731234642210,-500.0,0.00030136,2]
[341795390,1731234642219,-500.0,0.00030136,2]
[341795391,1731234642228,-500.0,0.00030136,2]
[341795392,1731234642237,-500.0,0.00030136,2]
[341795393,1731234642246,-500.0,0.00030136,2]
[341795394,1731234642255,-375.77973367,0.00030136,2]
[341795395,1731234642264,-1000.0,0.00030136,2]
[341795396,1731234642273,-249.90510999,0.00030136,2]
[341795397,1731234642282,-500.0,0.00030136,2]
[341795398,1731234642291,-500.0,0.00030136,2]
[341795399,1731234642302,-934.35,0.00030136,2]
[341795400,1731234642311,-500.0,0.00030136,2]
[341795401,1731234642320,-500.0,0.00030136,2]
[341795402,1731234642329,-1000.0,0.00030136,30]
[341795403,1731234642338,-500.0,0.00030136,2]
[341795404,1731234642347,-498.62377105,0.00030136,2]
[341795405,1731234642356,-500.0,0.00030136,2]
[341795406,1731234642366,-225.466954,0.00030136,7]
[341795407,1731234642375,-547.06499435,0.00030136,2]
[341795408,1731234642384,-503.8118111,0.00030136,2]
[341795409,1731234642393,-524.33121824,0.00030136,2]
[341795410,1731234642402,-500.0,0.00030136,2]
[341795411,1731234642411,-500.0,0.00030136,2]
[341795412,1731234642421,-636.73,0.00030136,2]
[341795413,1731234642430,-517.37667181,0.00030136,2]
[341795414,1731234642440,-505.79814864,0.00030136,2]
[341795415,1731234642449,-225.466954,0.00030136,7]
[341795416,1731234642458,-500.0,0.00030136,2]
[341795417,1731234642467,-500.0,0.00030136,2]
[341795418,1731234642477,-500.0,0.00030136,2]
[341795420,1731234642486,-500.0,0.00030136,2]
[341795421,1731234642495,-1022.9,0.00030136,2]
[341795422,1731234642504,-541.81619855,0.00030136,2]
[341795423,1731234642513,-603.05,0.00030136,2]
[341795424,1731234642523,-500.0,0.00030136,2]
[341795425,1731234642532,-500.0,0.00030136,2]
[341795427,1731234642541,-500.0,0.00030136,2]
[341795429,1731234642550,-500.0,0.00030136,2]
[341795431,1731234642559,-500.0,0.00030136,2]
[341795433,1731234642568,-500.0,0.00030136,2]
[341795435,1731234642577,-500.0,0.00030136,2]
[341795437,1731234642587,-500.0,0.00030136,2]
[341795439,1731234642596,-500.0,0.00030136,2]
[341795441,1731234642606,-504.55401797,0.00030136,2]
[341795443,1731234642615,-575.94704247,0.00030136,2]
[341795445,1731234642624,-1672.454751,0.00030136,7]
[341795448,1731234642633,-566.73612131,0.00030136,2]
[341795449,1731234642642,-1672.454751,0.00030136,7]
[341795452,1731234642717,-200.0,0.00030136,2]
[341795453,1731234642728,-500.0,0.00030136,2]
[341795454,1731234642737,-500.0,0.00030136,2]
[341795455,1731234642748,-500.0,0.00030136,2]
[341795456,1731234642757,-500.0,0.00030136,2]
[341795457,1731234642766,-500.0,0.00030136,2]
[341795458,1731234642776,-472.09685805,0.00030136,2]
[341795459,1731234642785,-500.0,0.00030136,2]
[341795460,1731234642794,-547.36290395,0.00030136,2]
[341795461,1731234642804,-500.0,0.00030136,2]
[341795462,1731234642813,-516.81622851,0.00030136,2]
[341795463,1731234642822,-500.0,0.00030136,2]
[341795464,1731234642833,-1640.56,0.00030136,2]
[341795465,1731234642842,-466.36602539,0.00030136,2]
[341795466,1731234642851,-406.63178476,0.00030136,2]
[341795468,1731234642860,-518.63980509,0.00030136,2]
[341795469,1731234642869,-1603.14,0.00030136,120]
[341795470,1731234642878,-500.0,0.00030136,2]
[341795471,1731234642887,-500.0,0.00030136,2]
[341795472,1731234642896,-500.0,0.00030136,2]
[341795473,1731234642905,-500.0,0.00030136,2]
[341795474,1731234642915,-798.96,0.00030136,2]
[341795475,1731234642926,-500.0,0.00030136,2]
[341795476,1731234642935,-500.0,0.00030136,2]
[341795477,1731234642944,-500.0,0.00030136,2]
[341795478,1731234642954,-298.94513547,0.00030136,2]
[341795479,1731234642963,-500.0,0.00030136,7]
[341795480,1731234642972,-500.0,0.00030136,2]
[341795481,1731234642982,-500.0,0.00030136,2]
[341795482,1731234642991,-500.0,0.00030136,2]
[341795484,1731234643000,-504.45399314,0.00030136,2]
[341795486,1731234643009,-307.04876,0.00030136,7]
[341795487,1731234643019,-500.0,0.00030136,2]
[341795489,1731234643028,-500.0,0.00030136,2]
[341795491,1731234643038,-500.0,0.00030136,2]
[341795493,1731234643047,-500.0,0.00030136,2]
[341795495,1731234643056,-500.0,0.00030136,2]
[341795496,1731234643066,-506.6062354,0.00030136,2]
[341795497,1731234643075,-500.0,0.00030136,2]
[341795498,1731234643085,-307.04876,0.00030136,7]
[341795499,1731234643094,-500.0,0.00030136,2]
[341795500,1731234643104,-503.48742635,0.00030136,2]
[341795501,1731234643113,-500.0,0.00030136,2]
[341795503,1731234643123,-610.47796792,0.00030136,2]
[341795505,1731234643133,-500.0,0.00030136,2]
[341795507,1731234643142,-500.0,0.00030136,2]
[341795508,1731234643151,-500.0,0.00030136,2]
[341795510,1731234643160,-500.0,0.00030136,2]
[341795511,1731234643171,-512.16167126,0.00030136,2]
[341795512,1731234643180,-500.0,0.00030136,2]
[341795513,1731234643190,-510.19000788,0.00030136,2]
[341795514,1731234643199,-503.88239113,0.00030136,2]
[341795515,1731234643208,-561.13882929,0.00030136,2]
[341795516,1731234643217,-500.0,0.00030136,2]
[341795517,1731234643226,-500.0,0.00030136,2]
[341795518,1731234643235,-500.0,0.00030136,2]
[341795519,1731234643244,-357.43001126,0.00030136,2]
[341795520,1731234643254,-500.0,0.00030136,2]
[341795521,1731234643263,-500.0,0.00030136,2]
[341795522,1731234643272,-504.32692131,0.00030136,2]
[341795523,1731234643281,-509.34025798,0.00030136,2]
[341795524,1731234643291,-500.0,0.00030136,2]